bitfinex/quotes_ETHUSD_20241108
["timestamp","ask_amount","ask_price","bid_price","bid_amount"]
[1731092834396,0.01,2963.3,2960.9,0.42469845]
[1731092834397,0.7689,2961.8,2961.2,3.0]
[1731092836085,0.7689,2961.8,2961.1,3.93735952]
[1731092836389,0.01,2961.7,2961.1,3.93735952]
[1731092837708,0.01,2961.4,2961.1,3.93735952]
[1731092838209,0.7689,2961.8,2961.1,3.93735952]
[1731092838383,0.7689,2961.8,2961.6,3.93735952]
[1731092838890,0.8084,2962.1,2961.6,3.93735952]
[1731092842873,0.8184,2962.1,2961.6,3.93735952]
[1731092843369,0.8084,2962.1,2961.6,3.93735952]
[1731092843774,0.8184,2962.1,2961.6,3.93735952]
[1731092843981,0.8084,2962.1,2961.6,3.93735952]
[1731092845093,0.8184,2962.1,2961.2,7.69475952]
[1731092845299,0.8184,2962.1,2958.9,0.35236676]
[1731092845300,0.01,2960.9,2958.9,0.35236676]
[1731092845638,0.8201,2960.3,2959.1,3.93735952]
[1731092845793,0.8201,2960.3,2959.2,0.39373595]
[1731092846137,0.8201,2960.3,2959.2,0.90084045]
[1731092846513,0.8201,2960.3,2959.5,3.93735952]
[1731092846841,0.01,2960.9,2959.6,1.21831645]
[1731092846842,0.7959,2960.8,2959.6,1.21831645]
[1731092847008,0.7959,2960.8,2959.9,3.93735952]
[1731092847214,0.7959,2960.8,2960.0,0.42981645]
[1731092847408,0.7959,2960.8,2960.0,3.42981645]
[1731092847605,0.7959,2960.8,2960.0,3.0]
[1731092847810,0.7959,2960.8,2960.1,0.39373595]
[1731092849008,0.01,2960.6,2959.6,3.7885]
[1731092849332,0.01,2960.6,2959.6,4.21831645]
[1731092849539,0.01,2960.6,2959.6,3.42981645]
[1731092849720,0.01,2960.5,2959.6,3.0]
[1731092850908,0.7627,2960.2,2959.3,0.08725114]
[1731092851132,0.7627,2960.2,2959.1,3.93735952]
[1731092851133,0.7727,2960.2,2959.4,0.30872511]
[1731092851310,0.7727,2960.2,2959.1,3.93735952]
[1731092853138,0.7727,2960.2,2959.2,3.0]
[1731092853518,0.01,2960.1,2959.2,3.0]
[1731092853700,0.02,2960.1,2958.9,0.08628797]
[1731092853901,0.02,2960.1,2958.8,3.7708]
[1731092854131,0.01,2959.9,2958.8,3.0]
[1731092854334,0.7937,2959.8,2958.8,3.0]
[1731092855014,0.7937,2959.8,2958.7,4.02688163]
[1731092855531,0.7937,2959.8,2958.7,0.08952211]
[1731092855704,0.01,2959.6,2958.5,0.55]
[1731092856218,0.01,2959.6,2958.6,0.1689786]
[1731092857550,0.02,2959.6,2958.6,0.1689786]
[1731092858260,0.01,2959.6,2958.6,0.1689786]
[1731092858437,0.02,2959.6,2958.6,0.1689786]
[1731092858645,0.01,2959.6,2958.6,0.1689786]
[1731092859156,0.02,2959.6,2958.6,0.1689786]
[1731092859528,0.7774,2959.5,2958.6,0.1689786]
[1731092859761,0.7774,2959.5,2958.4,3.08898882]
[1731092860253,0.7774,2959.5,2958.4,3.44109818]
[1731092860747,0.01,2959.4,2958.4,3.08898882]
[1731092861331,0.7774,2959.5,2958.4,3.08898882]
[1731092861537,0.01,2959.4,2958.4,3.08898882]
[1731092861860,0.7874,2959.5,2958.4,3.08898882]
[1731092862059,0.01,2959.4,2958.4,3.08898882]
[1731092862266,0.7774,2959.5,2958.8,3.0]
[1731092862553,0.01,2959.8,2958.9,0.7961]
[1731092863255,0.01,2959.8,2959.0,0.37961]
[1731092864121,0.02,2960.0,2958.9,0.7961]
[1731092864322,0.01,2959.7,2958.9,0.7961]
[1731092864718,0.02,2960.0,2958.9,0.7961]
[1731092865243,0.01,2959.7,2958.9,0.7961]
[1731092865451,0.7804,2959.6,2958.8,3.0896482]
[1731092865753,0.7804,2959.2,2958.4,0.35204072]
[1731092866820,0.7804,2959.2,2958.4,0.08688095]
[1731092867020,0.7804,2959.2,2958.4,3.0]
[1731092868455,0.7804,2959.2,2958.4,3.35206893]
[1731092871578,0.01,2960.3,2958.1,0.35258463]
[1731092871579,0.7804,2959.0,2958.1,0.35258463]
[1731092871946,0.7804,2958.8,2958.1,0.09061583]
[1731092872147,0.01,2958.7,2957.7,0.35261848]
[1731092872606,0.7804,2958.8,2957.7,0.35261848]
[1731092872752,0.01,2958.7,2957.7,0.35261848]
[1731092873661,0.01,2958.7,2957.8,0.34396539]
[1731092874089,0.02,2958.7,2957.8,0.34396539]
[1731092875065,0.8302,2958.6,2957.7,0.35261848]
[1731092875583,0.01,2958.5,2957.7,0.35261848]
[1731092876661,0.8302,2958.6,2958.0,3.0]
[1731092876862,0.02,2959.3,2958.4,3.0]
[1731092876863,0.8302,2959.2,2958.4,3.0]
[1731092877064,0.8302,2959.2,2958.4,3.11]
[1731092877374,0.8302,2959.2,2958.4,0.11]
[1731092880205,0.01,2958.6,2958.4,0.11]
[1731092880389,0.8289,2958.5,2958.4,0.11]
[1731092882193,0.8389,2958.5,2958.4,0.11]
[1731092885301,0.8289,2958.5,2958.4,0.11]
[1731092886838,0.8389,2958.5,2958.4,0.11]
[1731092887831,0.8289,2958.5,2958.4,0.11]
[1731092888954,0.8389,2958.5,2958.4,0.11]
[1731092892914,0.8289,2958.5,2958.4,0.11]
[1731092893116,0.8389,2958.5,2958.4,0.11]
[1731092894832,0.8289,2958.5,2958.4,0.11]
[1731092895033,0.8226,2959.1,2958.4,0.11]
[1731092896475,0.8226,2959.1,2958.4,4.05210398]
[1731092896642,0.8226,2959.1,2958.5,0.4052104]
[1731092898235,0.7593,2959.7,2958.8,3.94210398]
[1731092898437,0.01,2959.9,2958.5,3.4052104]
[1731092898438,0.7593,2960.0,2959.2,3.94210398]
[1731092898636,0.7693,2960.0,2959.3,3.3942104]
[1731092899386,0.7693,2960.0,2959.3,3.59481409]
[1731092900240,0.7662,2959.5,2958.7,3.0]
[1731092900481,0.01,2959.4,2958.7,3.0]
[1731092901809,0.7762,2959.5,2958.7,3.0]
[1731092902898,0.8306,2959.8,2958.7,3.0]
[1731092903110,0.01,2959.5,2958.7,3.0]
[1731092904374,0.01,2959.5,2958.9,3.20060369]
[1731092904927,0.8506,2960.1,2959.3,3.7544]
[1731092905284,0.8506,2960.1,2959.3,3.0]
[1731092905520,0.8506,2960.1,2959.0,3.0]
[1731092907991,0.8506,2960.1,2959.0,3.08838671]
[1731092908351,0.01,2959.9,2959.0,3.08838671]
[1731092908823,0.09446031,2960.9,2958.7,3.0]
[1731092908824,0.01,2959.6,2958.7,3.0]
[1731092910025,0.7487,2959.8,2958.7,3.0]
[1731092910908,0.7487,2959.8,2958.9,3.20060369]
[1731092911110,0.7487,2959.8,2958.4,1.33759244]
[1731092911292,0.01,2959.5,2958.4,0.11]
[1731092911788,0.01,2959.3,2958.4,0.11]
[1731092911989,0.01,2959.3,2958.4,0.47622946]
[1731092912835,0.08447515,2960.0,2958.4,0.47622946]
[1731092912836,0.01,2959.9,2958.8,3.20060369]
[1731092913010,0.76,2960.0,2959.1,3.20060369]
[1731092913213,0.76,2960.0,2959.4,3.20060369]
[1731092913436,0.76,2960.0,2959.4,4.01100369]
[1731092913799,0.76,2960.0,2959.4,0.8104]
[1731092913998,0.76,2960.0,2958.8,3.20060369]
[1731092914203,0.76,2960.0,2958.9,3.0]
[1731092914430,0.01,2959.9,2958.9,3.0]
[1731092914625,0.01,2959.9,2959.2,3.0]
[1731092915941,0.76,2960.0,2959.5,3.20060369]
[1731092916718,0.77,2960.0,2959.5,3.20060369]
[1731092916929,0.77,2960.0,2959.2,0.8104]
[1731092916930,0.77,2960.0,2959.2,4.01100369]
[1731092917243,0.77,2960.0,2959.3,0.40110037]
[1731092917673,0.76,2960.0,2959.3,0.40110037]
[1731092917803,0.76,2960.0,2959.5,3.20060369]
[1731092918007,0.77,2960.0,2959.5,3.20060369]
[1731092919014,0.77,2960.0,2959.3,0.40110037]
[1731092919221,0.77,2960.0,2959.4,0.36017041]
[1731092919655,0.77,2960.0,2959.2,3.20060369]
[1731092920032,0.77,2960.0,2959.5,3.20060369]
[1731092920964,0.76,2960.0,2959.5,3.20060369]
[1731092921285,0.08445705,2961.0,2959.2,4.3437]
[1731092921286,0.812,2960.3,2959.8,3.20060369]
[1731092921411,0.812,2960.3,2959.9,0.32006037]
[1731092922025,0.01,2960.7,2960.1,3.20060369]
[1731092922232,0.7815,2960.6,2960.1,3.20060369]
[1731092922456,0.7715,2960.6,2960.1,3.20060369]
[1731092922656,0.7715,2960.6,2960.1,3.5526701]
[1731092923257,0.08444628,2961.4,2960.4,3.20060369]
[1731092923258,0.7715,2960.9,2960.4,3.20060369]
[1731092924068,0.08443075,2961.9,2960.7,3.20060369]
[1731092924069,0.8028,2961.3,2960.7,3.20060369]
[1731092924368,0.8128,2961.6,2961.2,3.20060369]
[1731092924526,0.8128,2961.6,2960.9,3.20060369]
[1731092924720,0.8128,2961.6,2960.7,3.32006037]
[1731092925061,0.8128,2961.6,2960.7,3.0]
[1731092925418,0.8028,2961.3,2960.7,3.0]
[1731092925752,0.01,2961.1,2960.6,3.20060369]
[1731092925960,0.8028,2961.3,2960.6,3.20060369]
[1731092925961,0.8128,2961.3,2960.6,3.20060369]
[1731092926120,0.01,2961.1,2960.7,0.32006037]
[1731092928476,0.7559,2960.7,2960.1,3.39975492]
[1731092928624,0.7559,2960.7,2960.1,3.31060369]
[1731092929539,0.7559,2960.7,2960.1,0.11]
[1731092930175,0.01,2960.6,2960.1,0.11]
[1731092931520,0.7559,2960.7,2960.1,3.31060369]
[1731092931753,0.7559,2960.7,2960.1,3.64166406]
[1731092931754,0.01,2960.6,2960.1,3.64166406]
[1731092931970,0.01,2960.6,2960.1,3.31060369]
[1731092933245,3.09443763,2961.9,2960.1,3.31060369]
[1731092933246,0.01,2961.2,2960.2,3.0]
[1731092933443,0.7679,2961.1,2960.8,3.20060369]
[1731092933756,0.7679,2961.1,2960.2,4.21261645]
[1731092933757,0.7679,2961.1,2960.5,3.20060369]
[1731092933972,3.28502724,2962.5,2960.5,3.20060369]
[1731092933973,1.05349154,2963.2,2962.8,0.01]
[1731092934280,0.7679,2963.6,2962.3,0.05859949]
[1731092934578,0.08437015,2963.5,2962.3,0.05859949]
[1731092934798,0.01,2964.0,2962.3,0.05859949]
[1731092934799,0.7679,2963.4,2962.3,0.05859949]
[1731092934956,0.08438308,2963.3,2962.3,0.05859949]
[1731092935295,0.7679,2963.4,2962.6,3.20060369]
[1731092935445,0.7679,2963.4,2962.7,0.06749599]
[1731092935646,0.7679,2963.4,2962.3,0.06859949]
[1731092936301,0.01,2963.9,2962.3,0.06859949]
[1731092936302,0.8325,2964.1,2963.0,3.20060369]
[1731092936513,0.8325,2964.1,2963.1,0.06748206]
[1731092936800,0.8325,2964.1,2963.0,3.21060369]
[1731092937103,0.8325,2964.1,2963.3,3.20060369]
[1731092937401,0.8325,2964.1,2963.1,0.01]
[1731092938303,0.8325,2964.1,2963.6,3.92914784]
[1731092939295,0.8325,2964.1,2963.7,0.06747647]
[1731092939451,0.8325,2964.1,2963.6,3.92914784]
[1731092940507,0.8325,2964.1,2962.6,0.01]
[1731092940508,0.63434986,2964.0,2962.6,0.01]
[1731092940655,0.63434986,2964.0,2962.9,3.92914784]
[1731092941364,0.63434986,2964.0,2963.0,0.39291478]
[1731092942601,0.63434986,2964.0,2963.3,3.92914784]
[1731092943158,0.8325,2964.1,2963.7,3.92914784]
[1731092943895,0.8325,2964.1,2963.6,3.92914784]
[1731092944678,0.8325,2964.1,2964.0,3.92914784]
[1731092945000,0.1369959,2964.2,2964.0,3.92914784]
[1731092945875,0.1369959,2964.2,2964.0,4.32206262]
[1731092946060,0.8073,2965.5,2964.2,0.01]
[1731092946356,0.8073,2965.5,2965.1,3.92914784]
[1731092946557,0.8073,2965.5,2964.4,0.01]
[1731092946754,0.8073,2965.5,2965.2,3.92914784]
[1731092946979,0.8073,2965.5,2964.7,0.01]
[1731092947208,0.8073,2965.5,2964.5,0.7824]
[1731092947209,0.8073,2965.5,2965.2,3.92914784]
[1731092947407,0.8073,2965.5,2964.8,3.93914784]
[1731092947904,0.8073,2965.5,2965.2,3.92914784]
[1731092948201,0.8073,2965.8,2965.2,3.92914784]
[1731092948706,0.8073,2965.8,2965.1,0.01]
[1731092949004,0.8073,2965.8,2965.2,3.92914784]
[1731092950775,0.8073,2965.8,2965.6,3.92914784]
[1731092950975,0.8073,2965.8,2965.2,3.92914784]
[1731092951508,0.8073,2965.8,2964.8,0.01]
[1731092952299,0.8073,2965.8,2965.1,3.01]
[1731092952613,0.7576,2966.6,2965.4,0.01]
[1731092952796,0.08428403,2966.5,2965.2,0.7779]
[1731092954015,0.7576,2966.6,2965.8,0.01]
[1731092954177,0.7576,2966.6,2965.9,3.0]
[1731092954380,0.8122,2967.0,2966.0,0.07741579]
[1731092954690,0.8122,2967.0,2966.0,3.01]
[1731092954864,0.8122,2967.0,2966.0,0.01]
[1731092955065,0.8122,2967.0,2965.6,3.0]
[1731092955066,0.8122,2967.0,2965.6,3.01]
[1731092955299,0.08426801,2966.9,2965.6,3.01]
[1731092955505,0.8176,2966.8,2965.2,3.7679]
[1731092955676,0.8176,2966.8,2965.2,0.7679]
[1731092955677,0.55,2966.5,2965.2,0.7679]
[1731092956000,0.55,2966.3,2965.2,0.7679]
[1731092956213,0.55,2966.5,2965.2,0.7779]
[1731092956214,0.08428955,2966.2,2965.2,0.7779]
[1731092956503,0.773,2966.1,2965.2,0.01]
[1731092957003,0.08428961,2966.0,2964.8,0.08927638]
[1731092957257,0.55,2965.9,2964.8,0.08927638]
[1731092957401,0.55,2965.7,2964.6,0.01]
[1731092957605,0.08430666,2965.6,2964.1,3.02737264]
[1731092957833,0.08430666,2965.6,2964.5,3.92914784]
[1731092958653,0.08430666,2965.6,2964.2,0.42016773]
[1731092958944,0.08430666,2965.6,2963.6,4.34931557]
[1731092958945,1.3102,2965.5,2963.6,4.34931557]
[1731092959115,0.08431919,2965.4,2963.7,0.43493156]
[1731092959302,0.55,2965.3,2963.8,0.42016773]
[1731092959651,0.7602,2964.7,2962.5,3.93914784]
[1731092959946,0.63434392,2964.6,2962.8,1.4202]
[1731092960508,0.55,2964.4,2962.8,2.2364]
[1731092960704,0.08434341,2964.3,2962.8,2.2364]
[1731092960969,0.08434341,2964.3,2962.9,3.0]
[1731092961254,0.8229,2964.2,2963.1,0.68617493]
[1731092961610,0.8229,2964.2,2963.1,0.35106812]
[1731092963618,0.08434524,2964.1,2963.1,0.35106812]
[1731092964022,0.55,2964.0,2963.1,0.35106812]
[1731092964254,0.08435435,2963.9,2963.1,0.35106812]
[1731092964925,0.08435436,2963.9,2963.1,0.35106812]
[1731092965314,0.55,2963.7,2963.1,0.35106812]
[1731092965627,0.08436036,2963.6,2963.1,0.35106812]
[1731092965963,0.8229,2963.8,2963.1,0.35106812]
[1731092966157,0.8229,2963.8,2963.2,0.06748331]
[1731092966448,0.8229,2963.8,2963.1,0.35106812]
[1731092969935,0.8229,2963.8,2963.2,0.06748339]
[1731092970135,0.8229,2963.8,2963.1,0.35106812]
[1731092971641,0.8229,2963.8,2963.2,0.06748252]
[1731092972369,0.8229,2963.8,2963.1,0.35106812]
[1731092973330,0.55,2963.7,2963.1,0.35106812]
[1731092973627,0.55,2963.7,2962.8,0.11]
[1731092973628,0.8008,2963.5,2962.8,0.11]
[1731092974941,1.3555,2963.3,2962.6,0.35129439]
[1731092975141,0.8055,2963.1,2962.6,0.35129439]
[1731092975342,0.8055,2963.1,2961.7,0.7664]
[1731092975725,0.8055,2963.1,2962.0,0.35134845]
[1731092976188,0.8055,2963.1,2962.0,4.28049629]
[1731092976393,0.8055,2963.1,2962.0,4.70854592]
[1731092976771,0.63437498,2963.0,2962.0,4.28049629]
[1731092977074,0.7853,2962.9,2962.0,4.28049629]
[1731092977477,0.7853,2962.9,2962.1,3.0]
[1731092977695,0.7853,2962.9,2962.1,3.06750636]
[1731092978189,0.7853,2962.9,2962.0,0.35134845]
[1731092978759,0.7853,2962.9,2962.1,0.0675041]
[1731092980772,0.7853,2962.9,2962.0,3.35134845]
[1731092981287,0.796,2962.7,2962.0,0.35134845]
[1731092981487,0.796,2962.5,2961.6,3.0]
[1731092981663,0.796,2962.5,2961.6,0.35149176]
[1731092981997,0.796,2962.5,2961.6,3.35149176]
[1731092982357,0.796,2962.5,2961.6,4.08946146]
[1731092982590,0.796,2962.5,2961.7,0.06751303]
[1731092982790,0.796,2962.5,2961.9,3.92914784]
[1731092982996,0.01,2963.6,2962.3,3.92914784]
[1731092982997,0.7843,2963.5,2962.3,3.92914784]
[1731092983309,0.08436996,2963.4,2962.3,4.32206262]
[1731092984494,0.7843,2963.3,2962.3,4.32206262]
[1731092985073,0.7843,2963.3,2962.0,3.0]
[1731092985074,0.7958,2963.1,2962.0,3.0]
[1731092985269,0.08437829,2963.0,2962.0,3.0]
[1731092985473,0.7958,2963.1,2962.3,3.92914784]
[1731092986061,0.8244,2963.4,2962.7,3.92914784]
[1731092986361,0.8244,2963.4,2962.8,0.06748967]
[1731092986588,0.8244,2963.4,2962.5,3.0]
[1731092988114,0.8244,2963.4,2962.4,4.73794784]
[1731092991094,0.8244,2963.4,2962.5,3.0]
[1731092992690,0.8244,2963.4,2962.0,1.16856519]
[1731092992888,0.7959,2963.2,2962.0,0.35126519]
[1731092993108,0.55,2963.0,2962.0,0.35126519]
[1731092993292,0.7959,2962.8,2962.1,0.06750552]
[1731092993497,0.7959,2962.8,2962.2,0.06751007]
[1731092993706,0.7959,2962.8,2962.0,0.35126519]
[1731092994319,0.7959,2962.8,2962.0,3.35126519]
[1731092995016,0.7959,2962.8,2962.1,0.06750727]
[1731092998922,0.7959,2962.8,2962.0,3.35126519]
[1731092999643,0.7959,2962.8,2962.1,0.06750557]
[1731093001212,0.7959,2962.8,2962.0,3.35126519]
[1731093001432,0.7959,2962.8,2962.2,3.19447756]
[1731093002401,0.7959,2962.8,2962.5,3.19447756]
[1731093003545,0.7959,2962.8,2962.2,3.19447756]
[1731093005337,0.08438891,2962.7,2962.2,3.19447756]
[1731093006155,0.08438891,2962.7,2962.1,0.35146452]
[1731093006559,0.7813,2962.8,2962.1,0.35146452]
[1731093006892,0.08438885,2962.7,2962.1,0.35146452]
[1731093007491,0.8199,2962.5,2962.1,0.35146452]
[1731093007648,0.8199,2962.3,2961.3,3.0]
[1731093007851,0.01,2962.9,2961.2,3.30447756]
[1731093007852,0.8199,2962.1,2961.2,0.11]
[1731093008064,0.8199,2961.9,2961.2,0.11]
[1731093008280,0.8199,2961.6,2961.2,0.11]
[1731093008483,0.08442288,2961.5,2961.2,0.11]
[1731093008687,0.7685,2961.6,2961.2,0.11]
[1731093008947,0.08442281,2961.5,2961.2,0.11]
[1731093009389,0.7685,2961.6,2961.2,0.11]
[1731093011209,0.09442249,2962.2,2961.2,0.11]
[1731093011210,0.55,2961.3,2961.2,0.11]
[1731093011487,0.6344326,2961.3,2961.2,0.11]
[1731093011697,0.7516,2961.4,2961.2,0.11]
[1731093012786,0.85202171,2962.8,2961.2,4.04427818]
[1731093012973,0.8198,2962.3,2961.2,0.11]
[1731093013295,3.93427818,2963.0,2960.4,0.44916736]
[1731093013296,0.8098,2961.5,2960.4,0.44916736]
[1731093013492,0.89424279,2961.4,2960.2,3.0]
[1731093013892,0.89424279,2961.4,2960.2,0.35155402]
[1731093014087,0.89424279,2961.4,2960.2,0.68670942]
[1731093014299,0.55,2961.3,2960.2,0.35155402]
[1731093014630,0.55,2961.1,2960.2,3.35155402]
[1731093014802,0.8312,2960.9,2960.2,3.35155402]
[1731093016236,0.0844371,2960.8,2960.2,0.35155402]
[1731093016391,0.01,2961.4,2959.7,3.93427818]
[1731093016392,0.7752,2960.6,2959.7,3.93427818]
[1731093016597,0.08445076,2960.5,2959.8,0.35158117]
[1731093017133,0.7752,2960.6,2959.9,0.0675606]
[1731093017536,0.7752,2960.6,2959.8,3.35158117]
[1731093018961,0.8209,2960.6,2959.8,3.35158117]
[1731093019133,0.8209,2960.6,2959.8,0.35158117]
[1731093019439,0.8209,2960.6,2959.9,3.0]
[1731093020206,0.8209,2960.6,2960.2,3.93427818]
[1731093020434,0.01,2961.9,2959.8,0.70954385]
[1731093020627,0.8209,2961.9,2960.2,3.0]
[1731093020832,0.8209,2961.9,2960.5,3.93427818]
[1731093020833,0.7774,2961.7,2960.5,3.93427818]
[1731093021098,0.7774,2961.5,2960.5,3.93427818]
[1731093021367,0.7774,2961.3,2960.5,3.93427818]
[1731093021568,0.7774,2961.3,2960.6,0.39342782]
[1731093023068,0.7774,2961.3,2960.5,3.93427818]
[1731093023266,0.7774,2961.3,2960.6,0.06754595]
[1731093023574,0.01,2962.2,2960.9,3.93427818]
[1731093023575,0.7949,2962.1,2960.9,3.93427818]
[1731093023872,0.7949,2961.9,2960.7,3.93427818]
[1731093024027,0.7949,2961.7,2960.7,3.93427818]
[1731093024231,0.7949,2961.5,2960.7,3.93427818]
[1731093024735,0.7949,2961.5,2960.8,0.06753858]
[1731093025769,0.08442123,2962.5,2961.1,3.93427818]
[1731093025971,0.7864,2962.4,2961.5,3.93427818]
[1731093026620,0.09440819,2962.9,2961.1,3.93427818]
[1731093026621,0.08439738,2962.3,2961.1,3.93427818]
[1731093026887,0.7864,2962.2,2960.8,3.0]
[1731093027088,0.7864,2962.0,2960.8,3.0]
[1731093027418,0.55,2961.8,2960.8,3.0]
[1731093027689,0.8708179,2961.7,2960.8,3.0]
[1731093028552,0.7864,2961.7,2961.1,3.93427818]
[1731093028752,0.7864,2961.7,2961.2,0.06752829]
[1731093029378,0.7678,2961.5,2960.9,0.06752824]
[1731093029687,0.7678,2961.5,2960.8,0.06753988]
[1731093030282,0.7678,2961.5,2960.7,3.93427818]
[1731093030844,0.7678,2961.5,2961.1,3.93427818]
[1731093031085,0.01,2962.8,2961.2,3.06753026]
[1731093031086,0.08441282,2962.3,2961.2,3.06753026]
[1731093031250,0.7646,2962.2,2961.2,3.0]
[1731093031586,0.7646,2962.2,2961.3,3.19641035]
[1731093032251,0.7646,2962.2,2961.0,3.0]
[1731093032252,0.7646,2962.2,2961.6,3.19641035]
[1731093032452,0.7646,2962.2,2961.6,3.52280397]
[1731093033091,0.7646,2962.2,2961.6,3.19641035]
[1731093036491,0.7646,2962.2,2961.1,0.8225]
[1731093036492,0.7646,2962.2,2961.4,3.0]
[1731093036706,0.7646,2962.2,2961.0,0.10099506]
[1731093036987,0.7646,2962.2,2961.2,3.0]
[1731093037569,0.7646,2962.2,2961.4,3.19641035]
[1731093037957,0.7646,2962.2,2961.2,3.0]
[1731093038978,0.7646,2962.2,2961.7,3.19641035]
[1731093039491,0.7646,2962.2,2961.5,3.0]
[1731093041714,0.7646,2962.2,2961.6,0.06751626]
[1731093042015,0.7646,2962.2,2961.5,3.0]
[1731093042177,0.7646,2962.2,2961.4,3.19641035]
[1731093042574,0.7646,2962.2,2961.1,3.0]
[1731093042575,0.63440123,2962.1,2961.2,3.0]
[1731093042804,0.7906,2962.0,2961.2,3.0]
[1731093043015,0.08441292,2961.9,2961.2,3.0]
[1731093044785,0.8286,2961.8,2961.2,3.0]
[1731093045115,0.8286,2961.8,2961.1,3.19641035]
[1731093046998,0.8286,2961.8,2960.8,3.19641035]
[1731093047201,0.55,2961.5,2960.7,0.11]
[1731093047391,0.55,2961.2,2960.7,0.11]
[1731093047620,0.5011337,2961.2,2960.7,0.11]
[1731093048005,0.03391102,2961.1,2960.7,0.11]
[1731093048205,0.7984,2961.3,2960.7,0.11]
[1731093049107,0.7984,2961.3,2960.8,0.06754168]
[1731093049310,0.7984,2961.3,2960.8,3.19641035]
[1731093050620,0.7984,2961.3,2960.7,0.11]
[1731093053840,0.7984,2961.3,2960.8,3.19641035]
[1731093054013,0.7984,2961.3,2961.1,3.19641035]
[1731093054720,0.7984,2961.3,2960.8,0.06753779]
[1731093054721,0.7984,2961.3,2960.8,3.26394814]
[1731093054922,0.7984,2961.3,2960.8,3.19641035]
[1731093055911,0.7984,2961.3,2960.7,0.11]
[1731093059238,0.7984,2961.3,2960.8,3.19641035]
[1731093060861,0.7984,2961.3,2960.8,3.52705138]
[1731093061061,0.7984,2961.3,2961.1,3.19641035]
[1731093061270,0.7941,2962.1,2961.1,3.19641035]
[1731093061421,0.03391102,2962.0,2961.4,3.19641035]
[1731093061627,0.785,2961.9,2961.4,3.19641035]
[1731093061966,0.785,2961.7,2961.1,3.19641035]
[1731093062527,0.785,2961.7,2961.4,3.19641035]
[1731093063048,0.785,2961.7,2960.7,0.11]
[1731093063247,1.3386,2961.5,2960.8,3.19641035]
[1731093065033,0.7728,2961.4,2960.8,3.19641035]
[1731093066134,0.7728,2961.4,2961.1,3.19641035]
[1731093067371,0.7728,2961.4,2960.8,3.19641035]
[1731093067574,0.55,2961.1,2960.7,0.11]
[1731093067774,1.3299,2960.8,2960.7,0.11]
[1731093067976,1.55519212,2960.8,2960.7,0.11]
[1731093069178,1.00519212,2960.8,2960.7,0.11]
[1731093069337,0.7799,2960.8,2960.7,0.11]
[1731093070989,1.3299,2960.8,2960.7,0.11]
[1731093073992,1.3399,2960.8,2960.7,0.11]
[1731093074779,1.3399,2960.8,2960.7,0.11]
[1731093075493,1.3299,2960.8,2960.7,0.11]
[1731093075809,1.3399,2960.8,2960.7,0.11]
[1731093077386,1.3299,2960.8,2960.7,0.11]
[1731093077585,1.3399,2960.8,2960.7,0.11]
[1731093077785,1.3499,2960.8,2960.7,0.11]
[1731093078003,1.3499,2960.8,2959.5,3.19641035]
[1731093078330,0.55,2960.1,2958.6,0.8038]
[1731093078617,0.55,2959.8,2958.8,3.19641035]
[1731093078803,0.03391102,2959.7,2958.9,0.06758362]
[1731093079321,0.03391102,2959.7,2958.8,3.19641035]
[1731093079879,0.8179,2959.5,2958.8,3.19641035]
[1731093080118,0.55,2959.3,2958.6,0.35146485]
[1731093080287,0.55,2959.3,2958.3,0.7548]
[1731093080288,0.8179,2959.1,2958.3,0.7548]
[1731093080487,0.03391102,2959.0,2958.2,3.19641035]
[1731093082380,0.03391102,2959.0,2958.5,3.19641035]
[1731093082613,0.8179,2959.1,2958.8,3.19641035]
[1731093082876,0.7969,2959.9,2958.8,3.19641035]
[1731093083091,0.03391102,2959.8,2958.8,3.19641035]
[1731093084104,0.55,2959.7,2958.8,3.19641035]
[1731093084310,0.03391102,2959.6,2958.8,3.19641035]
[1731093084722,0.03391102,2959.6,2959.1,3.19641035]
[1731093084899,0.03391102,2959.6,2958.8,3.59556139]
[1731093085544,1.3648,2959.5,2958.8,3.19641035]
[1731093085847,0.55,2959.3,2958.5,6.19641035]
[1731093085997,0.03391102,2959.2,2958.5,6.26400476]
[1731093087041,0.55,2959.3,2958.5,6.26400476]
[1731093087345,0.8148,2959.5,2958.8,3.19641035]
[1731093092145,0.05068542,2959.9,2959.4,3.19641035]
[1731093092350,0.7582,2959.8,2959.4,3.19641035]
[1731093092855,0.7582,2959.8,2959.1,3.19641035]
[1731093093050,0.7582,2959.8,2959.1,3.59128139]
[1731093093260,0.7582,2959.8,2959.4,3.19641035]
[1731093094616,0.05068542,2959.9,2959.5,0.06757644]
[1731093094814,0.05068542,2959.9,2959.7,3.19641035]
[1731093095020,0.05068542,2959.9,2959.7,3.52280903]
[1731093095618,0.05068542,2959.9,2959.7,4.32530903]
[1731093095817,0.05068542,2959.9,2959.8,3.06756544]
[1731093096018,0.8017,2960.7,2959.8,3.06755747]
[1731093096319,0.8017,2960.7,2960.1,3.19641035]
[1731093096888,0.8017,2960.7,2960.4,3.19641035]
[1731093097269,0.8017,2960.7,2959.7,1.2276204]
[1731093097465,0.8017,2960.7,2960.1,3.19641035]
[1731093099491,0.8017,2960.7,2960.4,3.19641035]
[1731093099688,0.8017,2960.7,2959.8,3.0]
[1731093099982,0.8017,2960.7,2960.2,3.19641035]
[1731093103853,0.8017,2960.7,2959.8,3.0]
[1731093103854,0.55,2961.5,2960.5,3.19641035]
[1731093104055,0.55,2961.3,2960.3,0.8253]
[1731093104263,0.03391102,2961.2,2960.4,3.19641035]
[1731093105862,0.7622,2961.1,2960.2,3.19641035]
[1731093106055,0.55,2960.8,2959.9,3.19641035]
[1731093106400,0.7622,2960.5,2959.9,3.19641035]